[Event "Late-Titled-Tuesday-Blitz-April-23-2024"]
[Site "Chess.com"]
[Date "2024.04.23"]
[Round "3"]
[White "AlexeiShirov"]
[Black "Jospem"]
[Result "1/2-1/2"]
[WhiteElo "2808"]
[BlackElo "3083"]
[TimeControl "180+1"]
[EndTime "14:29:57 PDT"]
[Termination "Game drawn by repetition"]

1. e4 {[%clk 0:03:00.9]} 1... e5 {[%clk 0:03:00.5]} 2. Nf3 {[%clk 0:03:00.4]}
2... Nc6 {[%clk 0:03:01.3]} 3. Bb5 {[%clk 0:03:00.1]} 3... a6 {[%clk 0:03:02]}
4. Ba4 {[%clk 0:03:00.1]} 4... Nf6 {[%clk 0:03:02.7]} 5. O-O {[%clk 0:02:59.3]}
5... Be7 {[%clk 0:03:03.4]} 6. Re1 {[%clk 0:02:58.8]} 6... d6 {[%clk 0:03:04.1]}
7. c3 {[%clk 0:02:57.8]} 7... O-O {[%clk 0:03:03.5]} 8. d4 {[%clk 0:02:55.4]}
8... b5 {[%clk 0:02:58.5]} 9. Bc2 {[%clk 0:02:51.9]} 9... Bb7 {[%clk 0:02:58.8]}
10. Nbd2 {[%clk 0:02:48.4]} 10... Re8 {[%clk 0:02:58]} 11. Nf1 {[%clk
0:02:46.3]} 11... Bf8 {[%clk 0:02:58.4]} 12. Ng3 {[%clk 0:02:45.7]} 12... g6
{[%clk 0:02:58.2]} 13. Bg5 {[%clk 0:02:42.1]} 13... Bg7 {[%clk 0:02:57.6]} 14.
Qd2 {[%clk 0:02:41]} 14... Na5 {[%clk 0:02:42.1]} 15. Rad1 {[%clk 0:02:33.8]}
15... Qe7 {[%clk 0:02:31.8]} 16. d5 {[%clk 0:02:12.4]} 16... Nc4 {[%clk
0:02:26.8]} 17. Qc1 {[%clk 0:02:11.4]} 17... c6 {[%clk 0:02:27.3]} 18. dxc6
{[%clk 0:02:05.6]} 18... Bxc6 {[%clk 0:02:28.2]} 19. h4 {[%clk 0:02:05.2]} 19...
Bd7 {[%clk 0:02:19.7]} 20. h5 {[%clk 0:01:58.5]} 20... Bg4 {[%clk 0:02:15.8]}
21. h6 {[%clk 0:01:55.7]} 21... Bh8 {[%clk 0:02:16.1]} 22. Rd3 {[%clk
0:01:51.6]} 22... Rac8 {[%clk 0:02:11.8]} 23. Nh2 {[%clk 0:01:49.9]} 23... Be6
{[%clk 0:02:09.4]} 24. Rf3 {[%clk 0:01:49.5]} 24... Nb6 {[%clk 0:02:08]} 25. Bh4
{[%clk 0:01:41.2]} 25... Nbd7 {[%clk 0:02:06.8]} 26. Nf5 {[%clk 0:01:21.7]}
26... Bxf5 {[%clk 0:01:35.6]} 27. exf5 {[%clk 0:01:20.1]} 27... Rc4 {[%clk
0:01:36.3]} 28. Re4 {[%clk 0:01:11.9]} 28... Rxe4 {[%clk 0:01:11.7]} 29. Bxe4
{[%clk 0:01:10.9]} 29... Qf8 {[%clk 0:00:53.8]} 30. fxg6 {[%clk 0:01:01.6]}
30... hxg6 {[%clk 0:00:49.7]} 31. Bc6 {[%clk 0:00:55.5]} 31... Re6 {[%clk
0:00:46.4]} 32. h7+ {[%clk 0:00:35.6]} 32... Kxh7 {[%clk 0:00:41.4]} 33. Ng4
{[%clk 0:00:35.2]} 33... d5 {[%clk 0:00:24.5]} 34. Rh3 {[%clk 0:00:31.9]} 34...
Nh5 {[%clk 0:00:19.1]} 35. Bxd7 {[%clk 0:00:30.3]} 35... Rd6 {[%clk 0:00:19.9]}
36. Nxe5 {[%clk 0:00:19.4]} 36... Bxe5 {[%clk 0:00:18.7]} 37. Bg4 {[%clk
0:00:19.3]} 37... Qg7 {[%clk 0:00:14.5]} 38. Bg5 {[%clk 0:00:18.2]} 38... Kg8
{[%clk 0:00:14]} 39. Bxh5 {[%clk 0:00:17.6]} 39... gxh5 {[%clk 0:00:14.9]} 40.
Rxh5 {[%clk 0:00:16.6]} 40... Rg6 {[%clk 0:00:15.6]} 41. g3 {[%clk 0:00:16.6]}
41... Qf8 {[%clk 0:00:12.4]} 42. Bh6 {[%clk 0:00:16]} 42... Qd6 {[%clk 0:00:11]}
43. Rg5 {[%clk 0:00:15.9]} 43... d4 {[%clk 0:00:09.2]} 44. Rxg6+ {[%clk
0:00:15.5]} 44... fxg6 {[%clk 0:00:10]} 45. cxd4 {[%clk 0:00:14.8]} 45... Bxd4
{[%clk 0:00:10.9]} 46. Be3 {[%clk 0:00:14.4]} 46... Bf6 {[%clk 0:00:07]} 47.
Qc8+ {[%clk 0:00:14.2]} 47... Kf7 {[%clk 0:00:07.6]} 48. Qb7+ {[%clk 0:00:14.2]}
48... Ke6 {[%clk 0:00:08.3]} 49. Qc8+ {[%clk 0:00:14.3]} 49... Kf7 {[%clk
0:00:08.8]} 50. Qb7+ {[%clk 0:00:14.4]} 50... Ke6 {[%clk 0:00:09.5]} 51. Qc8+
{[%clk 0:00:14.5]} 51... Kf7 {[%clk 0:00:10.2]} 1/2-1/2

[Event "Late-Titled-Tuesday-Blitz-April-23-2024"]
[Site "Chess.com"]
[Date "2024.04.23"]
[Round "3"]
[White "adricalderon8"]
[Black "Aygehovit1992"]
[Result "1-0"]
[WhiteElo "2527"]
[BlackElo "2709"]
[TimeControl "180+1"]
[EndTime "14:30:00 PDT"]
[Termination "adricalderon8 won by resignation"]

1. e4 {[%clk 0:03:00.9]} 1... c5 {[%clk 0:02:51.4]} 2. Nf3 {[%clk 0:02:59.6]}
2... e6 {[%clk 0:02:52]} 3. d4 {[%clk 0:02:59.2]} 3... cxd4 {[%clk 0:02:52.9]}
4. Nxd4 {[%clk 0:02:59.6]} 4... Nc6 {[%clk 0:02:53.6]} 5. Nc3 {[%clk 0:02:59.3]}
5... Qc7 {[%clk 0:02:54.2]} 6. f4 {[%clk 0:02:57.6]} 6... a6 {[%clk 0:02:52.8]}
7. Nxc6 {[%clk 0:02:56.7]} 7... Qxc6 {[%clk 0:02:50.3]} 8. Bd3 {[%clk
0:02:53.1]} 8... b5 {[%clk 0:02:50.2]} 9. a3 {[%clk 0:02:42.3]} 9... Bb7 {[%clk
0:02:50.5]} 10. Bd2 {[%clk 0:02:42.4]} 10... Nf6 {[%clk 0:02:49.9]} 11. Qe2
{[%clk 0:02:41.8]} 11... Bc5 {[%clk 0:02:48.1]} 12. O-O-O {[%clk 0:02:41.6]}
12... Rc8 {[%clk 0:02:47.4]} 13. Kb1 {[%clk 0:02:41.1]} 13... b4 {[%clk
0:02:45.2]} 14. axb4 {[%clk 0:02:40.1]} 14... Bxb4 {[%clk 0:02:46.1]} 15. Nd5
{[%clk 0:02:40.6]} 15... Bxd2 {[%clk 0:02:39.9]} 16. Nxf6+ {[%clk 0:02:36.7]}
16... gxf6 {[%clk 0:02:39.5]} 17. Rxd2 {[%clk 0:02:37.3]} 17... h5 {[%clk
0:02:28.5]} 18. Rhd1 {[%clk 0:02:36.4]} 18... Rc7 {[%clk 0:02:24.6]} 19. g3
{[%clk 0:02:31.7]} 19... Ke7 {[%clk 0:02:21.6]} 20. e5 {[%clk 0:02:30.7]} 20...
f5 {[%clk 0:02:21.7]} 21. Qe3 {[%clk 0:02:18.3]} 21... Rhc8 {[%clk 0:02:16.8]}
22. Qe2 {[%clk 0:02:11.7]} 22... Rh8 {[%clk 0:02:01.8]} 23. Qe3 {[%clk
0:02:11.5]} 23... a5 {[%clk 0:02:01.5]} 24. Qe2 {[%clk 0:01:53.7]} 24... Qc5
{[%clk 0:01:57.1]} 25. Bb5 {[%clk 0:01:48]} 25... Bd5 {[%clk 0:01:50.6]} 26. Ba4
{[%clk 0:01:37.6]} 26... Rg8 {[%clk 0:01:15.6]} 27. Qxh5 {[%clk 0:01:31.7]}
27... Rb8 {[%clk 0:00:37.6]} 28. Qh4+ {[%clk 0:01:25.3]} 28... Ke8 {[%clk
0:00:37.7]} 29. Qh8+ {[%clk 0:01:23.2]} 29... Qf8 {[%clk 0:00:37.8]} 30. Qxf8+
{[%clk 0:01:23.5]} 30... Kxf8 {[%clk 0:00:38.2]} 31. b3 {[%clk 0:01:16.1]} 31...
Ke7 {[%clk 0:00:34.8]} 32. Kb2 {[%clk 0:01:14.2]} 32... Rc4 {[%clk 0:00:31]} 33.
Ka3 {[%clk 0:00:56.6]} 33... Rc3 {[%clk 0:00:28.7]} 34. Kb2 {[%clk 0:00:36.1]}
34... Rbc8 {[%clk 0:00:28.9]} 35. Re1 {[%clk 0:00:30.8]} 35... R8c7 {[%clk
0:00:25.9]} 36. Ree2 {[%clk 0:00:30.9]} 36... Rf3 {[%clk 0:00:19.9]} 37. Rd3
{[%clk 0:00:29.6]} 37... Rxd3 {[%clk 0:00:18.1]} 38. cxd3 {[%clk 0:00:29.8]}
38... f6 {[%clk 0:00:13.1]} 39. Rc2 {[%clk 0:00:24.1]} 39... Rb7 {[%clk
0:00:13]} 40. d4 {[%clk 0:00:23.3]} 40... Bxb3 {[%clk 0:00:09.9]} 41. Bxb3
{[%clk 0:00:22.7]} 41... Rb4 {[%clk 0:00:10.5]} 42. Rc4 {[%clk 0:00:21.9]} 42...
Rb8 {[%clk 0:00:09.9]} 43. Ra4 {[%clk 0:00:21.6]} 43... Rh8 {[%clk 0:00:09.6]}
44. h4 {[%clk 0:00:20.7]} 44... Rg8 {[%clk 0:00:09.8]} 45. Rxa5 {[%clk
0:00:19.5]} 45... Rxg3 {[%clk 0:00:10]} 46. Ra7 {[%clk 0:00:19.5]} 46... Rg4
{[%clk 0:00:09.5]} 47. exf6+ {[%clk 0:00:15.6]} 47... Kxf6 {[%clk 0:00:10.4]}
48. Rxd7 {[%clk 0:00:15.9]} 48... Rxf4 {[%clk 0:00:11]} 49. Rd6 {[%clk
0:00:16.7]} 49... Rxd4 {[%clk 0:00:08.4]} 50. Rxd4 {[%clk 0:00:16.4]} 1-0

[Event "Late-Titled-Tuesday-Blitz-April-23-2024"]
[Site "Chess.com"]
[Date "2024.04.23"]
[Round "3"]
[White "Mikhail_Golubev"]
[Black "mjelcic"]
[Result "0-1"]
[WhiteElo "2567"]
[BlackElo "2362"]
[TimeControl "180+1"]
[EndTime "14:30:00 PDT"]
[Termination "mjelcic won on time"]

1. e4 {[%clk 0:03:00.9]} 1... g6 {[%clk 0:02:57.1]} 2. d4 {[%clk 0:03:00.2]}
2... Bg7 {[%clk 0:02:56]} 3. c4 {[%clk 0:03:00.4]} 3... c5 {[%clk 0:02:54]} 4.
Nf3 {[%clk 0:02:58.7]} 4... cxd4 {[%clk 0:02:53.8]} 5. Nxd4 {[%clk 0:02:58.8]}
5... Nc6 {[%clk 0:02:53.8]} 6. Nc2 {[%clk 0:02:57.8]} 6... Nf6 {[%clk 0:02:52]}
7. Nc3 {[%clk 0:02:56.9]} 7... O-O {[%clk 0:02:50.7]} 8. Be2 {[%clk 0:02:57]}
8... d6 {[%clk 0:02:47]} 9. O-O {[%clk 0:02:56.3]} 9... Bd7 {[%clk 0:02:47.4]}
10. Be3 {[%clk 0:02:53.2]} 10... Ne5 {[%clk 0:02:38.8]} 11. f3 {[%clk
0:02:18.1]} 11... Rc8 {[%clk 0:02:23.7]} 12. b3 {[%clk 0:02:17.9]} 12... Qa5
{[%clk 0:02:18.4]} 13. Qd2 {[%clk 0:02:15.4]} 13... a6 {[%clk 0:02:10]} 14. Nd5
{[%clk 0:02:06.5]} 14... Qxd2 {[%clk 0:02:03.2]} 15. Nxe7+ {[%clk 0:02:05.3]}
15... Kh8 {[%clk 0:02:03.5]} 16. Bxd2 {[%clk 0:02:05.8]} 16... Rce8 {[%clk
0:02:03.7]} 17. Nd5 {[%clk 0:02:03.2]} 17... Nxd5 {[%clk 0:02:03.8]} 18. exd5
{[%clk 0:01:47.6]} 18... Ng4 {[%clk 0:01:56.8]} 19. Rae1 {[%clk 0:01:45]} 19...
Bf5 {[%clk 0:01:50.6]} 20. fxg4 {[%clk 0:01:42.6]} 20... Bxc2 {[%clk 0:01:50.1]}
21. Bd1 {[%clk 0:01:20.4]} 21... Bd4+ {[%clk 0:01:47.1]} 22. Kh1 {[%clk
0:01:20.1]} 22... Be4 {[%clk 0:01:34.6]} 23. Bh6 {[%clk 0:01:13.7]} 23... Bg7
{[%clk 0:01:33]} 24. Bxg7+ {[%clk 0:01:13.1]} 24... Kxg7 {[%clk 0:01:33.9]} 25.
h4 {[%clk 0:00:54.5]} 25... Re5 {[%clk 0:01:27]} 26. Kh2 {[%clk 0:00:52.5]}
26... Rfe8 {[%clk 0:01:19.6]} 27. Kg3 {[%clk 0:00:51.6]} 27... h6 {[%clk
0:01:13.2]} 28. Bf3 {[%clk 0:00:48.3]} 28... Bd3 {[%clk 0:01:06.5]} 29. Rxe5
{[%clk 0:00:45.6]} 29... Rxe5 {[%clk 0:01:05.7]} 30. Rd1 {[%clk 0:00:41]} 30...
Bc2 {[%clk 0:01:04]} 31. Rc1 {[%clk 0:00:35.8]} 31... Bd3 {[%clk 0:01:03.7]} 32.
Kf2 {[%clk 0:00:35]} 32... g5 {[%clk 0:01:02.9]} 33. hxg5 {[%clk 0:00:31.6]}
33... hxg5 {[%clk 0:01:01.8]} 34. Re1 {[%clk 0:00:31.4]} 34... Rxe1 {[%clk
0:01:01.4]} 35. Kxe1 {[%clk 0:00:31.3]} 35... a5 {[%clk 0:00:59.5]} 36. Kd2
{[%clk 0:00:30.4]} 36... Bb1 {[%clk 0:00:59.2]} 37. a3 {[%clk 0:00:30.5]} 37...
Kf6 {[%clk 0:00:59.3]} 38. b4 {[%clk 0:00:17.9]} 38... axb4 {[%clk 0:00:59.5]}
39. axb4 {[%clk 0:00:18]} 39... b6 {[%clk 0:00:56.3]} 40. Ke3 {[%clk 0:00:17.6]}
40... Ke5 {[%clk 0:00:56.5]} 41. g3 {[%clk 0:00:16.9]} 41... Bc2 {[%clk
0:00:54.6]} 42. Be2 {[%clk 0:00:16]} 42... Bb1 {[%clk 0:00:53.7]} 43. Bd3 {[%clk
0:00:15.6]} 43... Ba2 {[%clk 0:00:53.9]} 44. Be2 {[%clk 0:00:08.3]} 44... Bb1
{[%clk 0:00:52.9]} 45. Bd3 {[%clk 0:00:08.1]} 45... Ba2 {[%clk 0:00:53]} 46. b5
{[%clk 0:00:07.7]} 46... f6 {[%clk 0:00:52.7]} 47. Bf1 {[%clk 0:00:07]} 47...
Bb1 {[%clk 0:00:52.8]} 48. Be2 {[%clk 0:00:06.9]} 48... Bc2 {[%clk 0:00:46.9]}
49. Bd3 {[%clk 0:00:06.3]} 49... Bd1 {[%clk 0:00:45.8]} 50. Bf5 {[%clk 0:00:03]}
50... Bb3 {[%clk 0:00:41.3]} 51. Kd3 {[%clk 0:00:02.7]} 51... Bd1 {[%clk
0:00:36.3]} 52. Kc3 {[%clk 0:00:02.9]} 52... Be2 {[%clk 0:00:35.3]} 53. Bd7
{[%clk 0:00:02.7]} 53... Ke4 {[%clk 0:00:32.4]} 54. Bf5+ {[%clk 0:00:01.7]}
54... Ke5 {[%clk 0:00:32.6]} 0-1

[Event "Late-Titled-Tuesday-Blitz-April-23-2024"]
[Site "Chess.com"]
[Date "2024.04.23"]
[Round "3"]
[White "Hauptsache_Gambit"]
[Black "kleber2007"]
[Result "0-1"]
[WhiteElo "2208"]
[BlackElo "2441"]
[TimeControl "180+1"]
[EndTime "14:30:01 PDT"]
[Termination "kleber2007 won by resignation"]

1. d4 {[%clk 0:02:57.7]} 1... d5 {[%clk 0:02:58.2]} 2. f3 {[%clk 0:01:57.9]}
2... Nf6 {[%clk 0:02:55.2]} 3. Nc3 {[%clk 0:01:56.8]} 3... c5 {[%clk 0:02:51.7]}
4. dxc5 {[%clk 0:01:50.6]} 4... d4 {[%clk 0:02:51.5]} 5. Ne4 {[%clk 0:01:46.3]}
5... Nxe4 {[%clk 0:02:50.4]} 6. fxe4 {[%clk 0:01:47.2]} 6... e5 {[%clk
0:02:47.2]} 7. Nf3 {[%clk 0:01:41.6]} 7... Bxc5 {[%clk 0:02:37.9]} 8. e3 {[%clk
0:01:41.2]} 8... Nc6 {[%clk 0:02:34.4]} 9. exd4 {[%clk 0:01:41.2]} 9... Nxd4
{[%clk 0:02:33.1]} 10. c3 {[%clk 0:01:34.2]} 10... Nc6 {[%clk 0:02:18.2]} 11.
Qxd8+ {[%clk 0:01:27.8]} 11... Kxd8 {[%clk 0:02:19.1]} 12. Bc4 {[%clk
0:01:25.7]} 12... f6 {[%clk 0:02:15.4]} 13. Ke2 {[%clk 0:01:25.8]} 13... Bg4
{[%clk 0:02:14.1]} 14. Be3 {[%clk 0:01:24.2]} 14... Bxe3 {[%clk 0:02:11.2]} 15.
Kxe3 {[%clk 0:01:25.1]} 15... Ke7 {[%clk 0:02:05.5]} 16. h3 {[%clk 0:01:24.6]}
16... Bxf3 {[%clk 0:02:03.6]} 17. gxf3 {[%clk 0:01:25.5]} 17... Rad8 {[%clk
0:02:00.5]} 18. Rhg1 {[%clk 0:01:25.3]} 18... g6 {[%clk 0:02:00.5]} 19. Bd5
{[%clk 0:01:22.6]} 19... Rd6 {[%clk 0:01:53.7]} 20. Rad1 {[%clk 0:01:21.2]}
20... Rhd8 {[%clk 0:01:52.3]} 21. Rg2 {[%clk 0:01:20.8]} 21... Nb8 {[%clk
0:01:42.3]} 22. Rgd2 {[%clk 0:01:20]} 22... b6 {[%clk 0:01:42.2]} 23. b4 {[%clk
0:01:13.5]} 23... Na6 {[%clk 0:01:40.9]} 24. Bc4 {[%clk 0:01:10.6]} 24... Rxd2
{[%clk 0:01:38.9]} 25. Rxd2 {[%clk 0:01:11.5]} 25... Rxd2 {[%clk 0:01:38.9]} 26.
Kxd2 {[%clk 0:01:12.2]} 26... Nc7 {[%clk 0:01:39.6]} 27. Ke3 {[%clk 0:01:11.4]}
27... f5 {[%clk 0:01:34.1]} 28. f4 {[%clk 0:01:07.3]} 28... Kf6 {[%clk
0:01:30.9]} 29. Bg8 {[%clk 0:00:47.8]} 29... exf4+ {[%clk 0:01:17.2]} 30. Kxf4
{[%clk 0:00:46.7]} 30... g5+ {[%clk 0:01:17.7]} 31. Ke3 {[%clk 0:00:44]} 31...
h5 {[%clk 0:01:08.3]} 32. exf5 {[%clk 0:00:37.9]} 32... Kxf5 {[%clk 0:01:09.2]}
33. Bf7 {[%clk 0:00:37.8]} 33... h4 {[%clk 0:00:45.9]} 34. a4 {[%clk 0:00:33.2]}
34... g4 {[%clk 0:00:42.3]} 35. hxg4+ {[%clk 0:00:34.1]} 35... Kxg4 {[%clk
0:00:43.1]} 36. Kd4 {[%clk 0:00:18]} 36... h3 {[%clk 0:00:42.8]} 37. Bg6 {[%clk
0:00:18.5]} 37... Ne6+ {[%clk 0:00:37]} 38. Ke5 {[%clk 0:00:17.2]} 38... Ng5
{[%clk 0:00:36.7]} 39. Be8 {[%clk 0:00:13.5]} 39... h2 {[%clk 0:00:34.2]} 40.
Bd7+ {[%clk 0:00:09.6]} 40... Kg3 {[%clk 0:00:33.3]} 41. Bc6 {[%clk 0:00:07.6]}
41... Nf3+ {[%clk 0:00:32.3]} 42. Kd6 {[%clk 0:00:08.5]} 42... h1=Q {[%clk
0:00:31.9]} 43. Kc7 {[%clk 0:00:09.4]} 43... Qc1 {[%clk 0:00:28.7]} 44. Kb7
{[%clk 0:00:09.4]} 44... Qxc3 {[%clk 0:00:28.2]} 45. b5 {[%clk 0:00:09.9]} 45...
Qa5 {[%clk 0:00:27.8]} 46. Bd5 {[%clk 0:00:09.9]} 46... Qxa4 {[%clk 0:00:24.4]}
47. Bc6 {[%clk 0:00:10.8]} 47... Qa5 {[%clk 0:00:24.3]} 48. Bxf3 {[%clk
0:00:09.4]} 48... Kxf3 {[%clk 0:00:24.3]} 49. Kc6 {[%clk 0:00:10.3]} 49... Ke4
{[%clk 0:00:23.7]} 50. Kb7 {[%clk 0:00:11.2]} 50... Kd5 {[%clk 0:00:20.8]} 51.
Kc7 {[%clk 0:00:11.1]} 51... Kc5 {[%clk 0:00:21.7]} 52. Kb7 {[%clk 0:00:11.6]}
52... Kxb5 {[%clk 0:00:22.2]} 53. Kc7 {[%clk 0:00:12.5]} 53... a6 {[%clk
0:00:22.4]} 0-1

[Event "Late-Titled-Tuesday-Blitz-April-23-2024"]
[Site "Chess.com"]
[Date "2024.04.23"]
[Round "3"]
[White "Rodalquilar"]
[Black "TheSilmarils"]
[Result "0-1"]
[WhiteElo "2742"]
[BlackElo "2971"]
[TimeControl "180+1"]
[EndTime "14:30:02 PDT"]
[Termination "TheSilmarils won on time"]

1. d4 {[%clk 0:03:00.9]} 1... Nf6 {[%clk 0:02:59.1]} 2. Nf3 {[%clk 0:03:01.1]}
2... e6 {[%clk 0:02:58.4]} 3. Bf4 {[%clk 0:03:01.4]} 3... c5 {[%clk 0:02:54]} 4.
e3 {[%clk 0:03:00.8]} 4... Nc6 {[%clk 0:02:53.4]} 5. c3 {[%clk 0:03:00.7]} 5...
d5 {[%clk 0:02:53.6]} 6. Nbd2 {[%clk 0:03:00.9]} 6... cxd4 {[%clk 0:02:54.2]} 7.
exd4 {[%clk 0:03:01.1]} 7... Nh5 {[%clk 0:02:54.1]} 8. Be3 {[%clk 0:03:01.6]}
8... Bd6 {[%clk 0:02:50.9]} 9. Ne5 {[%clk 0:03:02]} 9... g6 {[%clk 0:02:47.4]}
10. Nd3 {[%clk 0:03:02.1]} 10... O-O {[%clk 0:02:39.2]} 11. g3 {[%clk
0:03:02.4]} 11... b6 {[%clk 0:02:31.9]} 12. Bg2 {[%clk 0:02:39.8]} 12... Ba6
{[%clk 0:02:31.5]} 13. Nf3 {[%clk 0:02:40.1]} 13... Ne7 {[%clk 0:02:16]} 14. O-O
{[%clk 0:02:24]} 14... Nf5 {[%clk 0:02:06.7]} 15. Bc1 {[%clk 0:02:24.2]} 15...
Nhg7 {[%clk 0:02:04.2]} 16. Re1 {[%clk 0:02:21.6]} 16... Qc7 {[%clk 0:01:55.4]}
17. Bf4 {[%clk 0:02:14.6]} 17... Bxd3 {[%clk 0:01:55.3]} 18. Bxd6 {[%clk
0:02:14.5]} 18... Nxd6 {[%clk 0:01:53.7]} 19. Qxd3 {[%clk 0:02:14.4]} 19... b5
{[%clk 0:01:54.6]} 20. a3 {[%clk 0:01:39.8]} 20... Rab8 {[%clk 0:01:52.6]} 21.
Rac1 {[%clk 0:01:33.3]} 21... a5 {[%clk 0:01:51.6]} 22. Qd2 {[%clk 0:01:19.6]}
22... Rfc8 {[%clk 0:01:46.2]} 23. Qh6 {[%clk 0:00:56]} 23... Ngf5 {[%clk
0:01:44.7]} 24. Qh3 {[%clk 0:00:53.6]} 24... h5 {[%clk 0:01:40.5]} 25. Ne5
{[%clk 0:00:48.2]} 25... Kg7 {[%clk 0:01:22.7]} 26. Nd3 {[%clk 0:00:40.2]} 26...
Nc4 {[%clk 0:01:16.2]} 27. Re2 {[%clk 0:00:22.8]} 27... Qd6 {[%clk 0:00:59.8]}
28. Rce1 {[%clk 0:00:21.4]} 28... Rh8 {[%clk 0:00:49.5]} 29. Nf4 {[%clk
0:00:12.9]} 29... Rb6 {[%clk 0:00:34.5]} 30. Rxe6 {[%clk 0:00:03.7]} 30... fxe6
{[%clk 0:00:35.4]} 31. Rxe6 {[%clk 0:00:04]} 31... Qxe6 {[%clk 0:00:23.3]} 32.
Nxe6+ {[%clk 0:00:04.9]} 32... Rxe6 {[%clk 0:00:23.7]} 33. Bxd5 {[%clk
0:00:05.3]} 33... Re1+ {[%clk 0:00:24]} 34. Kg2 {[%clk 0:00:05.8]} 34... Rf8
{[%clk 0:00:23.5]} 35. Bxc4 {[%clk 0:00:05]} 35... bxc4 {[%clk 0:00:21.5]} 36.
g4 {[%clk 0:00:05.6]} 36... hxg4 {[%clk 0:00:18.3]} 37. Qxg4 {[%clk 0:00:06.5]}
37... Rfe8 {[%clk 0:00:12.4]} 38. d5 {[%clk 0:00:06.4]} 38... R1e2 {[%clk
0:00:11.6]} 39. Kf1 {[%clk 0:00:03.8]} 39... Rd2 {[%clk 0:00:09.7]} 40. Qxc4
{[%clk 0:00:02.9]} 40... Rf8 {[%clk 0:00:07.5]} 41. Qc7+ {[%clk 0:00:02.8]}
41... Kg8 {[%clk 0:00:06.6]} 42. d6 {[%clk 0:00:02.5]} 42... Nxd6 {[%clk
0:00:06.1]} 43. Qa7 {[%clk 0:00:01.2]} 43... Ne4 {[%clk 0:00:05]} 0-1

[Event "Late-Titled-Tuesday-Blitz-April-23-2024"]
[Site "Chess.com"]
[Date "2024.04.23"]
[Round "3"]
[White "Kolle05"]
[Black "jinxy2009"]
[Result "1-0"]
[WhiteElo "2568"]
[BlackElo "2306"]
[TimeControl "180+1"]
[EndTime "14:30:02 PDT"]
[Termination "Kolle05 won on time"]

1. e4 {[%clk 0:03:00.9]} 1... c6 {[%clk 0:02:59]} 2. d4 {[%clk 0:02:56.5]} 2...
d5 {[%clk 0:02:59.2]} 3. e5 {[%clk 0:02:56.8]} 3... Bf5 {[%clk 0:02:59]} 4. Nf3
{[%clk 0:02:55.8]} 4... e6 {[%clk 0:02:59.3]} 5. Be2 {[%clk 0:02:55.1]} 5... Nd7
{[%clk 0:02:54.9]} 6. O-O {[%clk 0:02:54.8]} 6... a5 {[%clk 0:02:50.1]} 7. a4
{[%clk 0:02:54.2]} 7... Ne7 {[%clk 0:02:40.9]} 8. c3 {[%clk 0:02:53.9]} 8... h6
{[%clk 0:02:40.7]} 9. Nbd2 {[%clk 0:02:52.2]} 9... g5 {[%clk 0:02:40.9]} 10. h3
{[%clk 0:02:52.1]} 10... Bg7 {[%clk 0:02:40.7]} 11. Re1 {[%clk 0:02:49.2]} 11...
Qc7 {[%clk 0:02:40.3]} 12. Nf1 {[%clk 0:02:49.2]} 12... O-O {[%clk 0:02:40.2]}
13. Ng3 {[%clk 0:02:49.1]} 13... Bg6 {[%clk 0:02:40.2]} 14. Nh2 {[%clk
0:02:48.7]} 14... f6 {[%clk 0:02:27.3]} 15. exf6 {[%clk 0:02:44.6]} 15... Nxf6
{[%clk 0:02:28.2]} 16. Bd3 {[%clk 0:02:40.4]} 16... Qd6 {[%clk 0:02:09.8]} 17.
Ng4 {[%clk 0:02:33.4]} 17... Nxg4 {[%clk 0:02:00.7]} 18. hxg4 {[%clk 0:02:34.3]}
18... Rae8 {[%clk 0:01:57.1]} 19. Nh5 {[%clk 0:02:22.8]} 19... Bxh5 {[%clk
0:01:50.2]} 20. gxh5 {[%clk 0:02:23.7]} 20... Nf5 {[%clk 0:01:50.7]} 21. Bc2
{[%clk 0:02:14.2]} 21... e5 {[%clk 0:01:48.7]} 22. dxe5 {[%clk 0:02:06.8]} 22...
Bxe5 {[%clk 0:01:48.6]} 23. Bd2 {[%clk 0:01:58.7]} 23... Nh4 {[%clk 0:01:45.7]}
24. Qg4 {[%clk 0:01:51.8]} 24... Re7 {[%clk 0:01:19.9]} 25. Bxg5 {[%clk
0:01:38.5]} 25... Rg7 {[%clk 0:01:13.4]} 26. Qxh4 {[%clk 0:01:35.7]} 26... Rxg5
{[%clk 0:01:05]} 27. Re2 {[%clk 0:01:25.8]} 27... Rf4 {[%clk 0:01:02.7]} 28. Qh3
{[%clk 0:01:25]} 28... Rfg4 {[%clk 0:00:50.1]} 29. Rae1 {[%clk 0:01:08.7]} 29...
Rxg2+ {[%clk 0:00:28.3]} 30. Qxg2 {[%clk 0:01:09.6]} 30... Rxg2+ {[%clk
0:00:28.6]} 31. Kxg2 {[%clk 0:01:10.5]} 31... Bf6 {[%clk 0:00:27.3]} 32. Bg6
{[%clk 0:01:07]} 32... Qf4 {[%clk 0:00:24.8]} 33. Re3 {[%clk 0:00:52.5]} 33...
Bh4 {[%clk 0:00:20.1]} 34. R1e2 {[%clk 0:00:46.4]} 34... Qg4+ {[%clk 0:00:15.6]}
35. Kf1 {[%clk 0:00:45.5]} 35... Qxa4 {[%clk 0:00:10.3]} 36. Rf3 {[%clk
0:00:40]} 36... Qd1+ {[%clk 0:00:05.5]} 37. Kg2 {[%clk 0:00:26.6]} 37... Qxe2
{[%clk 0:00:05.8]} 38. Rf7 {[%clk 0:00:25.6]} 38... Qxb2 {[%clk 0:00:06]} 39.
Kh3 {[%clk 0:00:23.6]} 39... Qxc3+ {[%clk 0:00:06]} 40. Kxh4 {[%clk 0:00:23]}
40... Qd4+ {[%clk 0:00:06.4]} 41. f4 {[%clk 0:00:22.8]} 41... Qf2+ {[%clk
0:00:05.3]} 42. Kg4 {[%clk 0:00:22.9]} 42... Qg2+ {[%clk 0:00:05]} 43. Kf5
{[%clk 0:00:23.1]} 43... Qh3+ {[%clk 0:00:04.2]} 44. Kf6 {[%clk 0:00:22.4]}
44... Qh4+ {[%clk 0:00:03.4]} 45. Ke6 {[%clk 0:00:22.3]} 45... a4 {[%clk
0:00:02.4]} 46. f5 {[%clk 0:00:20.2]} 46... Qe4+ {[%clk 0:00:02.3]} 47. Kd7
{[%clk 0:00:16.3]} 47... Qb4 {[%clk 0:00:02]} 48. f6 {[%clk 0:00:15.4]} 1-0